Cogmind - Beta 17 @@@ ROGUE MODE // 2026.08.12 @ 13:19:42 Player: Marc Result: Self-destructed Performance ------------- Evolutions (2) 1000 Regions Visited (3) 600 Robots Destroyed (36) 180 Value Destroyed (1024) 1024 Prototype IDs (1) 20 Alien Tech Used (0) 0 Bonus (0) 0 TOTAL SCORE: 2824 Bonus ------- None Cogmind --------- Core Integrity 319/550 Matter 260/300 Energy 23/100 System Corruption 3% Temperature Cool (0) Movement Rolling (80) Location -8/Materials Parts ------- > --- POWER (2) -------- (None) > --- PROPULSION (3) --- Wheel Wheel > --- UTILITY (4) ------ Structural Scanner Terrain Scanner > --- WEAPON (2) ------- Pulse Rifle Pulse Rifle > --- INVENTORY (5) ---- Light Ion Engine Structural Scanner Improved Terrain Scan Processor ECM Suite Datajack Peak State ------------ > --- POWER ------------ Light Ion Engine Improved Ion Engine > --- PROPULSION ------- Airjet Airjet Airjet > --- UTILITY ---------- Advanced Weight Redist. System Improved Sensor Array Reaction Control System Hacking Suite > --- WEAPON ----------- Gauss Rifle Gauss Rifle > --- INVENTORY -------- Structural Scanner Improved Terrain Scan Processor ECM Suite Datajack [Rating: 32] Favorites ----------- Power Light Ion Engine Engine Light Ion Engine Propulsion Airjet Leg Improved Aluminum Leg Wheel Wheel Hover Unit Airjet Utility ECM Suite Device ECM Suite Storage Small Storage Unit Hackware Hacking Suite Weapon Particle Cannon Energy Gun Small Laser Energy Cannon Particle Cannon Ballistic Gun Gauss Rifle Launcher Grenade Launcher Special Melee Weapon Datajack Build | -11 -10 -9 -8 ------- Run | Yrd Mat Mat Mat Slots Evolved 4 | . . 2 2 Power 1 | . . 1 . Propulsion 1 | . . . 1 Utility 2 | . . 1 1 Weapon . | . . . . Parts Attached 32 | . 7 9 16 Power 5 | . 1 1 3 Engine 5 | . 1 1 3 Core . | . . . . Reactor . | . . . . Propulsion 9 | . 2 3 4 Treads . | . . . . Leg 3 | . 2 1 . Wheel 2 | . . . 2 Hover 4 | . . 2 2 Flight . | . . . . Utility 8 | . 1 3 4 Device 7 | . 1 2 4 Storage . | . . . . Processor . | . . . . Hackware 1 | . . 1 . Protection . | . . . . Artifact . | . . . . Weapon 10 | . 3 2 5 Energy Gun 3 | . . . 3 Energy Cannon 3 | . 2 1 . Ballistic Gun 2 | . . . 2 Ballistic Cannon . | . . . . Launcher 1 | . 1 . . Special Weapon . | . . . . Impact Weapon . | . . . . Slashing Weapon . | . . . . Piercing Weapon . | . . . . Special Melee Weapon 1 | . . 1 . Unidentified Prototypes 1 | . . . 1 Parts Lost 16 | . 2 2 12 Power 5 | . 1 1 3 Propulsion 5 | . 1 1 3 Utility 4 | . . . 4 Weapon 2 | . . . 2 Highest Loss Streak 9 | . 2 1 9 To Critical Strikes . | . . . . Average Backups 5 | 5 4 7 4 Power . | 1 . . . Propulsion 1 | 3 1 2 . Utility 2 | . . 2 2 Weapon 1 | 1 1 1 . Tool/Special . | . . . . Unused Backups 14 | . 9 2 3 Power . | . . . . Propulsion 5 | . 3 2 . Utility 4 | . 1 . 3 Weapon 5 | . 5 . . Tool/Special . | . . . . Average Slot Usage (%) 88 | . 85 85 91 Engine 12 | . 12 10 14 Leg 13 | . 27 19 . Hover 10 | . . . 24 Device 15 | . 8 10 25 Storage 7 | . 14 11 . Hackware 6 | . . 11 8 Energy Cannon 13 | . 15 13 11 Ballistic Gun 2 | . . . 5 Launcher 1 | . 5 . . Special Melee Weapon 2 | . . 8 . Peak Build Rating 32 | 6 12 20 32 Average Rating 17 | 6 8 14 26 On Entrance 11 | 6 6 12 20 Avg Prop Armor Cover (%) 7 | . . . 7 Naked Turns . | . . . . Heaviest Build 22 | 10 20 22 21 Greatest Support 33 | 20 26 26 33 Greatest Overweight (x) 7 | . 2 7 4 Average Overweight (x) . | . . . . Largest Inventory Capacity 8 | 8 8 8 8 Average Capacity 6 | 8 8 8 5 Most Carried 8 | 5 8 8 7 Average Carried 5 | 2 4 7 4 Final Capacity 8 | 8 8 8 5 Final Carried 8 | 2 7 8 5 Class Distribution -------------------- 86% | Mutant 13% | Scavenger-Mutant Dominant Class ---------------- Mutant | -10/Materials Mutant | -9/Materials Mutant | -8/Materials Resources | -11 -10 -9 -8 ----------- Run | Yrd Mat Mat Mat Matter Collected 819 | 200 110 55 454 Remotely . | . . . . Salvage Created 1125 | . 298 165 662 Parts 63 | . 15 9 39 Haulers Intercepted 2 | . . . 2 Recyclers Shooed . | . . . . Parts Field Recycled . | . . . . Retrieved Matter . | . . . . Parts Self-Destructed . | . . . . Prevented . | . . . . Parts Restored . | . . . . Kills | -11 -10 -9 -8 ------- Run | Yrd Mat Mat Mat Combat Hostiles Destroyed 21 | . 7 3 11 Guns 6 | . . . 6 Cannons 8 | . 1 2 5 AOE 6 | . 6 . . Classes Destroyed 11 | . 6 1 4 Worker 2 | . 2 . . Builder 1 | . . . 1 Tunneler 3 | . 1 . 2 Hauler 2 | . . . 2 Recycler 1 | . 1 . . Operator 3 | . 1 1 1 Watcher 3 | . 2 . 1 Swarmer 3 | . . . 3 Grunt 13 | . 7 2 4 Sentry 2 | . . 1 1 Hunter 3 | . . . 3 Best Kill Streak 9 | . 7 1 9 Combat Bots Only 4 | . 4 1 4 Max Kills in Single Turn 5 | . 5 1 1 Gunslinging . | . . . . Exploded 3 | . 3 . . Melee . | . . . . Uniques/NPCs Destroyed . | . . . . Combat | -11 -10 -9 -8 -------- Run | Yrd Mat Mat Mat Hostile Shots Fired 215 | . 37 59 119 Missed 76 | . 12 22 42 Hits 139 | . 25 37 77 Projectile 139 | . 25 37 77 Critical Strikes 2 | . . 1 1 Damage Taken 2088 | . 498 514 1076 Core 445 | . 60 154 231 Absorbed by Shields . | . . . . Core Remaining (%) 79 | 100 76 61 . Volleys Fired 91 | . 14 16 61 Largest 2 | . 2 2 2 Hottest 136 | . 136 136 136 Shots Fired 156 | . 23 18 115 Gun 76 | . . . 76 Cannon 75 | . 18 18 39 Launcher 5 | . 5 . . Special . | . . . . Kinetic 76 | . . . 76 Thermal 75 | . 18 18 39 Explosive 5 | . 5 . . Electromagnetic . | . . . . Robot Hit Streak 9 | . 4 4 9 Robot Miss Streak 8 | . 4 2 8 Penetration Max 1 | . . . 1 Secondary Targets 1 | . . . 1 Max Gunslinging Chain 1 | . . . 1 Shots Hit Robots 90 | . 11 11 68 Core Hits 54 | . 22 4 28 Critical Kills . | . . . . Critical Parts Destroyed . | . . . . Critical Strikes . | . . . . Melee Attacks 3 | . . . 3 Impact . | . . . . Slashing . | . . . . Piercing . | . . . . Sneak Attacks 3 | . . . 3 Combat Hostiles . | . . . . Follow-up Attacks . | . . . . Damage Inflicted 2879 | . 1087 225 1567 Guns 1140 | . . . 1140 Cannons 814 | . 162 225 427 Explosions 925 | . 925 . . Melee . | . . . . Ramming . | . . . . Kinetic 1140 | . . . 1140 Thermal 814 | . 162 225 427 Explosive 925 | . 925 . . Electromagnetic . | . . . . Impact . | . . . . Slashing . | . . . . Piercing . | . . . . Highest Corruption 3 | . . . 3 Average Corruption 3 | . . . 3 Corruption Purged . | . . . . Corruption Blocked . | . . . . Effects 7 | . . . 7 Message Errors 2 | . . . 2 Heat Flow Errors 1 | . . . 1 Parts Rejected 1 | . . . 1 Data Loss (minor) 1 | . . . 1 Alerts 1 | . . . 1 Weapon Failures 1 | . . . 1 Overload Shots . | . . . . Overflow Damage 74 | . 68 6 . Projectiles 7 | . 1 6 . Explosions 67 | . 67 . . Melee . | . . . . Knockbacks . | . . . . Impact . | . . . . Kinetic . | . . . . Secondary . | . . . . Self-Inflicted Damage 178 | . 178 . . Shots 3 | . 3 . . Rammed . | . . . . Targets Rammed . | . . . . Kicked . | . . . . Crushed . | . . . . Highest Temperature 483 | . 225 303 483 Average Temperature 111 | . 88 109 117 Received Heat Transfer 615 | . 162 273 180 Effects 6 | . . 3 3 Shutdowns 2 | . . . 2 Energy Bleed 1 | . . 1 . Interference 2 | . . 2 . Short Circuit 1 | . . . 1 Siege Activations . | . . . . Martial Activations . | . . . . Shielding Activations . | . . . . Robots Disrupted . | . . . . Combat Hostiles . | . . . . Robots Corrupted . | . . . . Combat Hostiles . | . . . . Parts Fried . | . . . . Impact Corruptions . | . . . . Robots Melted 1 | . . 1 . Combat Hostiles 1 | . . 1 . Parts Melted 2 | . . 1 1 Heat Transferred 1480 | . 296 407 777 Parts Sabotaged . | . . . . Parts Stolen . | . . . . Parts Stripped . | . . . . Power Chain Reactions . | . . . . Alert | -11 -10 -9 -8 ------- Run | Yrd Mat Mat Mat Maximum Alert Level . | . . . . Low Security (%) 100 | 100 100 100 100 Level 1 . | . . . . Level 2 . | . . . . Level 3 . | . . . . Level 4 . | . . . . Level 5 . | . . . . High Security . | . . . . Max Security . | . . . . Peak Influence 152 | . 152 30 94 Initial . | . . . . Average 29 | . 51 7 25 Influence Increases 799 | . 304 126 369 Destroy 0b10 Robot/C 420 | . 140 60 220 Destroy 0b10 Robot/NC 75 | . 35 5 35 Destroy Leader 140 | . 44 30 66 Successful Hack 1 | . . . 1 Disable Machine 75 | . 30 15 30 Destroy Structure 58 | . 55 1 2 Partial Spotted 15 | . . . 15 Lose Combat Pursuer 15 | . . 15 . Influence Decreases 732 | . 304 126 302 Time Decay 587 | . 284 111 192 Lost Part 145 | . 20 15 110 Squads Dispatched 5 | . 2 1 2 Investigation 3 | . 1 . 2 Extermination . | . . . . Reinforcement 2 | . 1 1 . Assault . | . . . . Garrison . | . . . . Intercept . | . . . . Searches Triggered . | . . . . Construction Impeded . | . . . . Haulers Reinforced . | . . . . Active Scanning Responses . | . . . . Cargo Convoy Interrupts . | . . . . Stealth | -11 -10 -9 -8 --------- Run | Yrd Mat Mat Mat Distress Signals 2 | . . . 2 Communications Jammed . | . . . . Distress Signals . | . . . . Times Spotted 48 | . 17 10 21 Peak Tracking Total 4 | . 4 3 4 Tactical Retreats 7 | . 3 2 2 ECM-based Alert Blocks 11 | . 5 2 4 Traps | -11 -10 -9 -8 ------- Run | Yrd Mat Mat Mat Traps Triggered 2 | . 2 . . Indirectly . | . . . . Trap Hack Attempts . | . . . . Triggered . | . . . . Disarmed . | . . . . Reprogrammed . | . . . . Reused . | . . . . Traps Extracted . | . . . . Installed . | . . . . Triggered . | . . . . Machines | -11 -10 -9 -8 ---------- Run | Yrd Mat Mat Mat Machines Disabled 5 | . 2 1 2 Max in Single Turn 2 | . 2 1 1 Machines Repaired . | . . . . Machines Dismantled . | . . . . Machines Sabotaged . | . . . . Overloaded Fab Kills . | . . . . Hacking | -11 -10 -9 -8 --------- Run | Yrd Mat Mat Mat Machines Accessed 5 | . 1 1 3 Terminals 5 | . 1 1 3 Fabricators . | . . . . Repair Stations . | . . . . Recycling Units . | . . . . Scanalyzers . | . . . . Garrison Access . | . . . . Total Hacks 13 | . 3 2 8 Successful 9 | . . 2 7 Failed 4 | . 3 . 1 Catastrophic 1 | . . . 1 Database Lockouts . | . . . . Manual 1 | . . 1 . Terminals 13 | . 3 2 8 Fabricators . | . . . . Repair Stations . | . . . . Recycling Units . | . . . . Scanalyzers . | . . . . Garrison Access . | . . . . Terminal Hacks 9 | . . 2 7 Record 1 | . . . 1 Alert Level 1 | . . . 1 Maintenance Status 1 | . . . 1 Reinforcement Status 1 | . . . 1 Hauler Manifests 2 | . . . 2 Zone Layout 3 | . . 2 1 Fabricator Hacks . | . . . . Repair Station Hacks . | . . . . Recycling Unit Hacks . | . . . . Scanalyzer . | . . . . Garrison Access Hacks . | . . . . Unauthorized Hacks . | . . . . Terminals . | . . . . Fabricators . | . . . . Repair Stations . | . . . . Recycling Units . | . . . . Scanalyzers . | . . . . Garrison Access . | . . . . Data Cores Recovered 2 | . 1 . 1 Used 1 | . . . 1 Hacking Detections 3 | . 1 . 2 Full Trace Events 2 | . . . 2 Feedback Events . | . . . . Feedback Blocked . | . . . . Robot Schematics Acquired . | . . . . Robots Built . | . . . . Authchips . | . . . . Time . | . . . . Total Robot Build Rating . | . . . . Part Schematics Acquired . | . . . . Parts Built . | . . . . Authchips . | . . . . Time . | . . . . Total Part Build Rating . | . . . . Part Studies Acquired . | . . . . Parts Repaired . | . . . . Time . | . . . . Parts Recycled . | . . . . Recycled Matter . | . . . . Retrieved Matter . | . . . . Retrieved Components . | . . . . Parts Scanalyzed . | . . . . Part Schematics Acquired . | . . . . Parts Damaged . | . . . . Bothacking | -11 -10 -9 -8 ------------ Run | Yrd Mat Mat Mat Used RIF Installer . | . . . . Robots Hacked 1 | . . . 1 Non-combat 1 | . . . 1 Combat . | . . . . Robot Hacks Applied 1 | . . . 1 no_distress 1 | . . . 1 Relay Couplers Released . | . . . . Fabnet Peak Effective % . | . . . . Robots Rewired . | . . . . Allies Hacked . | . . . . Hacks Repelled . | . . . . Allies | -11 -10 -9 -8 -------- Run | Yrd Mat Mat Mat Total Allies . | . . . . Largest Group . | . . . . Highest-Rated Group . | . . . . Highest-Rated Ally . | . . . . Total Orders . | . . . . Ally Attacks . | . . . . Total Damage . | . . . . Kills . | . . . . Allies Corrupted . | . . . . Allies Melted . | . . . . Intel | -11 -10 -9 -8 ------- Run | Yrd Mat Mat Mat Active Infowar (turns) 1775 | . 442 440 893 Sensors 494 | . . . 494 Terrain 17 | . . . 17 Structural 21 | . . . 21 ECM 1644 | . 442 440 762 Robot Analysis Total . | . . . . Derelict Logs Recovered . | . . . . Drone Launches . | . . . . Drone Recoveries . | . . . . Exploration | -11 -10 -9 -8 ------------- Run | Yrd Mat Mat Mat Turns Passed 2216 | 5 734 553 924 Spaces Moved 1292 | 3 459 242 588 Core 51 | . 6 2 43 Treads . | . . . . Legs 675 | 3 453 219 . Wheels 4 | . . . 4 Hover 562 | . . 21 541 Flight . | . . . . Fastest Speed 52 | 120 120 56 52 Average Speed 95 | 120 120 126 63 Slowest Speed 400 | 120 150 400 250 Overloaded Moves . | . . . . Propulsion Burnouts . | . . . . Robots Hopped . | . . . . Potential Cave-ins . | . . . . Cave-ins Triggered . | . . . . Exploration Rate (%) 37 | 2 83 31 34 Regions Visited 3 Branch Regions . Pre-discovered Areas . | . . . . Known Exits Taken . | . . . . Unknown Exits Taken 3 | 1 1 1 . Scrap Searched . | . . . . Spaces Dug . | . . . . Terrain Destroyed 69 | . 69 . . Melee . | . . . . Projectile . | . . . . AOE 69 | . 69 . . Terrain Rammed . | . . . . Walls Destroyed . | . . . . Machines Disabled . | . . . . Actions | -11 -10 -9 -8 --------- Run | Yrd Mat Mat Mat Total 2121 | 6 622 476 1017 Wait 639 | . 119 189 331 Move 1289 | 2 458 241 588 Hop . | . . . . Pick Up 28 | . 14 9 5 Fast Attach 11 | . . . 11 Attach 21 | . 7 9 5 Detach 10 | . 4 6 . Swap 6 | . . 1 5 Drop 23 | 4 6 5 8 Fire 91 | . 14 16 61 Melee 3 | . . . 3 Ram . | . . . . Kick . | . . . . Crush . | . . . . Escape Stasis . | . . . . Rewire . | . . . . Trap . | . . . . Miscellaneous . | . . . . Route ------- -11/Scrapyard -10/Materials (discovered 2 exits: *Mat / [*Min]) -9/Materials (discovered 2 exits: *Mat / [*Sto]) -8/Materials History --------- Turn | Location | Event 3 | -11/Scrapyard | Discovered new exit (range 2) 6 | -11/Scrapyard | Entered Materials 252 | -10/Materials | Discovered new exit (range 14) 368 | -10/Materials | Build established: Mutant 591 | -10/Materials | Discovered new exit (range 16) 740 | -10/Materials | Entered another Materials area 740 | -9/Materials | Evolved 2 slots: Power x1, Utility x1 1084 | -9/Materials | Discovered new exit (range 16) 1172 | -9/Materials | Discovered new exit (range 15) 1293 | -9/Materials | Entered another Materials area 1293 | -8/Materials | Evolved 2 slots: Propulsion x1, Utility x1 2210 | -8/Materials | Lost 9 parts (2p2n4u1w) 2217 | -8/Materials | Self-destructed Last Messages --------------- 02192_ K-01 Serf collects debris. 02194_ Acquired Lgt. Ion Engine. 02196_ K-01 Serf collects debris. 02196_ Acquired Structural Scanner. 02196_ U-05 Engineer builds a Door. 02197_ K-01 Serf collects debris. 02200_ Acquired Terrain Scanner. 02201_ K-01 Serf collects debris. 02201_ Acquired 20 matter. 02202_ K-01 Serf collects debris. 02203_ Acquired Unknown Energy Gun. 02203_ Identified Pulse Rifle. 02204_ System corrupted: IFF burst signal emitted. 02204_ K-01 Serf collects debris. 02205_ Dropped Gauss Rifle. 02206_ Acquired Pulse Rifle. 02208_ K-01 Serf collects debris. 02211_ Acquired Wheel. 02211_ K-01 Serf collects debris. 02213_ Acquired Wheel. Map ----- +----------------------------------------------------+ | ???# #???????????###???????????????????????????? | | ???# ############# ###?????????????????????????? | | ???# + #?????????????????????????? | | ???# ########## """" #?????????????????????????? | | ???# #????????# """" ###############???????????? | | ???# ########## += #^ #???????????? | | ???# # # ##### "" #???????????? | | ???# # ! # =#???#""""" #???????????? | | ???# # #+##+#######""""" #???????????? | | ???# # """ # #""""" #???????????? | | ???# # """" + # "" #???????????? | | ???# # """" # !!! # #???????????? | | ???# # """"" ###%= !!! + #???????????? | | ???# # """ #?# !! ###########???????????? | | ???# #* #?# =##????????????????????? | | ???# ##+#######?# ]!##????????????????????? | | ???# ^ ######### = =! ##????????????????????? | | ???# % [% =]!##????????????????????? | | ???# #### ######### !##????????????????????? | | ???# #??# ######### = ##????????????????????? | | ???# #??#+######### ##????????????????????? | | ???######??# # ### ##????????? | | ???????????# """ T # #######+######????????? | | ?????###???# """"" # % s s ????????? | | ###### #???# """"" + u s ????????? | | # #???# """"" #|@ ????????? | | # #???# """ #% #############?????????? | | # #???# #!|[# #???????????? | | # #?### ! # % # """ """ #???????????? | | #// ############### k + """ """ #???????????? | | #/] [# | %%%# """ """ #???????????? | | # !+ k[![# """ """ #?#?????????? | | # #= k %# """ """ #???????????? | | #/ # #######T### # #???????????? | | # # ##### ##### # #???????????? | | # # #???? #Y ########?##???????????? | | # # #???????? + ##????????????????????? | | # # #???????? # ##????#???????????????? | | #####+## #???????? # ##????????????????????? | | ????# #+########?## ##????????????????????? | | ????# #? """ #?## ########??????????????? | | ????# # """"" #?## # ]#??????????????? | | ????# # """"" #?## # """ #??????????????? | | ????# # """"" #?## + """ #??????????????? | | ????# # """ #?## # """ #??????????????? | | ????# # #### # #??????????????? | | ????# # + # #??????????????? | | ????# # #####+######+##??????????????? | | ????# # # ## #???????????????? | | ????# ######+### """ ## #???????????????? | +----------------------------------------------------+ Best States ------------- Heat Dissipation 31 Energy Generation 17 Energy Capacity 290 Matter Stores 300 Matter Capacity 300 Sight Range 16 Robot Scan Range 15 Terrain Scan Range 14 Terrain Scan Density 10 ECM Strength 1 Additional Mass Support 9 Evasion (%) 62 Offensive Hacking 10 Item Schematics ----------------- None Robot Schematics ------------------ None Fabricated ------------ Nothing Repaired ---------- Nothing Studied --------- None Alien Tech Used ----------------- None Achievements -------------- Overwhelming Challenges ------------ None Game ------ Seed DisposableWeaponsStorm Manual? 0 Play Time 00:26:25 Cumulative 14.6 hours Start 2026.08.10 @ 19:05:17 End 2026.08.12 @ 13:19:42 Sessions 3 Manual Loads 0 Difficulty Rogue Special Mode None Game No. 41 Rogue 34 Adventurer 7 Explorer 0 Win Type - Total 0 Types 0/0/0/0/0/0/0/0/0/0 Lore% 10 Gallery% 19 Achievement% 14 Wizard Run 0 Options --------- Layout 0 ASCII 0 Keyboard 0 Movement Mouse Keybinds 0 Fullscreen 1 Font 18/SmallcapsGlow Map View 38x25 Zoom Use 97% Tactical HUD 1 Map Filters NONE Filters NONE Steam 1 RUN: d9986f9a-542c-416e-9dba-dfb3969e2d2f